Workbook

Sheet Dashboard
O3: 2018
O4: ABRIL | EY4: Empresa - Sector | EZ4: Empresa - Sector
C5: Acumulado a: | D5: =O4 -> ABRIL | G5: Datos acumulados | I5: Cuota Negocio / Total ASEMPLEO | L5: =empresa_ccaa!L5 -> iEMPRESA | N5: ¿▲"sin" mi Empresa? | EZ5: p.p.
C6: Total | D6: Facturación, € | F6: (a) | G6: =L5 -> iEMPRESA | K6: Cuota de Facturación | L6: ∆ | N6: (b) | O6: ∆ (a-b) | EZ6: Puntos porcentuales
D7: 2017 | E7: 2018 | F7: % i.a. | G7: =D7 -> 2017 | H7: =E7 -> 2018 | I7: % i.a. | J7: =G7 -> 2017 | K7: =H7 -> 2018 | L7: Dif.P.P. | N7: % i.a. | O7: Dif.P.P. | EY7: Dif. Ritmo | EZ7: Importancia Relativa | FC7: Empresa
C8: Nacional | D8: =empresa_ccaa!F12 -> 1075683738 | E8: =empresa_ccaa!G12 -> 1238527705 | F8: =((E8/D8)-1) -> 0.1513864735 | G8: =empresa_ccaa!K12 -> 0 | H8: =empresa_ccaa!L12 -> 0 | I8: =IF(G8>0,((H8/G8)-1),"n.a.") -> n.a. | J8: =G8/D8 -> 0 | K8: =H8/E8 -> 0 | L8: =(K8-J8)*100 -> 0 | N8: =((E8-H8)/(D8-G8))-1 -> 0.1513864735 | O8: =(F8-N8)*100 -> 0 | EY8: =IF(I8="n.a.","n.a.",(I8-F8)*100) -> n.a. | EZ8: =empresa_ccaa!M12-empresa_ccaa!H12 ->  | FB8: criterio_rank | FC8: peso | FD8: Comunidad | FE8: % i.a. | FF8: Total_Regional
C9: ANDALUCIA | D9: =empresa_ccaa!F13 -> 99582906.27 | E9: =empresa_ccaa!G13 -> 111023291 | F9: =((E9/D9)-1) -> 0.1148830171 | G9: =empresa_ccaa!K13 -> 0 | H9: =empresa_ccaa!L13 -> 0 | I9: n.a. | J9: 0 | K9: 0 | L9: =(K9-J9)*100 -> 0 | N9: =((E9-H9)/(D9-G9))-1 -> 0.1148830171 | O9: 0 | EY9: n.a. | EZ9: =empresa_ccaa!M13-empresa_ccaa!H13 ->  | FB9: =IF(FC9=$FC$27,1,0) -> 1 | FC9: =K9 -> 0 | FD9: =C9 -> ANDALUCIA | FE9: =I9 -> n.a. | FF9: =F9 -> 0.1148830171
C10: ARAGON | D10: =empresa_ccaa!F14 -> 56672274.22 | E10: =empresa_ccaa!G14 -> 62558009.11 | F10: =((E10/D10)-1) -> 0.1038556326 | G10: =empresa_ccaa!K14 -> 0 | H10: =empresa_ccaa!L14 -> 0 | I10: n.a. | J10: 0 | K10: 0 | L10: 0 | N10: 0.1038556326 | O10: 0 | EY10: n.a. | EZ10: =empresa_ccaa!M14-empresa_ccaa!H14 ->  | FB10: 1 | FC10: 0 | FD10: ARAGON | FE10: n.a. | FF10: 0.1038556326
C11: ASTURIAS | D11: =empresa_ccaa!F15 -> 21003022.58 | E11: =empresa_ccaa!G15 -> 23962270.74 | F11: 0.1408962997 | G11: =empresa_ccaa!K15 -> 0 | H11: =empresa_ccaa!L15 -> 0 | I11: n.a. | J11: 0 | K11: 0 | L11: 0 | N11: 0.1408962997 | O11: 0 | EY11: n.a. | EZ11: =empresa_ccaa!M15-empresa_ccaa!H15 ->  | FB11: 1 | FC11: 0 | FD11: ASTURIAS | FE11: n.a. | FF11: 0.1408962997
C12: BALEARES | D12: =empresa_ccaa!F16 -> 3946954.336 | E12: =empresa_ccaa!G16 -> 4410256.162 | F12: 0.1173821095 | G12: =empresa_ccaa!K16 -> 0 | H12: =empresa_ccaa!L16 -> 0 | I12: n.a. | J12: 0 | K12: 0 | L12: 0 | N12: 0.1173821095 | O12: 0 | EY12: n.a. | EZ12: =empresa_ccaa!M16-empresa_ccaa!H16 ->  | FB12: 1 | FC12: 0 | FD12: BALEARES | FE12: n.a. | FF12: 0.1173821095
C13: CANARIAS | D13: =empresa_ccaa!F17 -> 28746215.06 | E13: =empresa_ccaa!G17 -> 31044433.63 | F13: 0.07994856237 | G13: =empresa_ccaa!K17 -> 0 | H13: =empresa_ccaa!L17 -> 0 | I13: n.a. | J13: 0 | K13: 0 | L13: 0 | N13: 0.07994856237 | O13: 0 | EY13: n.a. | EZ13: =empresa_ccaa!M17-empresa_ccaa!H17 ->  | FB13: 1 | FC13: 0 | FD13: CANARIAS | FE13: n.a. | FF13: 0.07994856237
C14: CANTABRIA | D14: =empresa_ccaa!F18 -> 24157691.91 | E14: =empresa_ccaa!G18 -> 30854376.07 | F14: 0.2772071186 | G14: =empresa_ccaa!K18 -> 0 | H14: =empresa_ccaa!L18 -> 0 | I14: n.a. | J14: 0 | K14: 0 | L14: 0 | N14: 0.2772071186 | O14: 0 | EY14: n.a. | EZ14: =empresa_ccaa!M18-empresa_ccaa!H18 ->  | FB14: 1 | FC14: 0 | FD14: CANTABRIA | FE14: n.a. | FF14: 0.2772071186
C15: CASTILLA-LA MANCHA | D15: =empresa_ccaa!F19 -> 44425325.81 | E15: =empresa_ccaa!G19 -> 53376452.65 | F15: 0.2014870274 | G15: =empresa_ccaa!K19 -> 0 | H15: =empresa_ccaa!L19 -> 0 | I15: n.a. | J15: 0 | K15: 0 | L15: 0 | N15: 0.2014870274 | O15: 0 | EY15: n.a. | EZ15: =empresa_ccaa!M19-empresa_ccaa!H19 ->  | FB15: 1 | FC15: 0 | FD15: CASTILLA-LA MANCHA | FE15: n.a. | FF15: 0.2014870274
C16: CASTILLA Y LEÓN | D16: =empresa_ccaa!F20 -> 72635480.9 | E16: =empresa_ccaa!G20 -> 82421469.27 | F16: 0.1347273846 | G16: =empresa_ccaa!K20 -> 0 | H16: =empresa_ccaa!L20 -> 0 | I16: n.a. | J16: 0 | K16: 0 | L16: =(K16-J16)*100 -> 0 | N16: 0.1347273846 | O16: 0 | EY16: n.a. | EZ16: =empresa_ccaa!M20-empresa_ccaa!H20 ->  | FB16: 1 | FC16: 0 | FD16: CASTILLA Y LEÓN | FE16: n.a. | FF16: 0.1347273846
C17: CATALUÑA | D17: =empresa_ccaa!F21 -> 266050543.5 | E17: =empresa_ccaa!G21 -> 319416123.6 | F17: 0.200584368 | G17: =empresa_ccaa!K21 -> 0 | H17: =empresa_ccaa!L21 -> 0 | I17: =IF(G17>0,((H17/G17)-1),"n.a.") -> n.a. | J17: 0 | K17: 0 | L17: =(K17-J17)*100 -> 0 | N17: 0.200584368 | O17: 0 | EY17: n.a. | EZ17: =empresa_ccaa!M21-empresa_ccaa!H21 ->  | FB17: 1 | FC17: 0 | FD17: CATALUÑA | FE17: n.a. | FF17: 0.200584368
C18: COMUNIDAD VALENCIANA | D18: =empresa_ccaa!F22 -> 77431694.76 | E18: =empresa_ccaa!G22 -> 87513377.97 | F18: 0.1302009886 | G18: =empresa_ccaa!K22 -> 0 | H18: =empresa_ccaa!L22 -> 0 | I18: n.a. | J18: 0 | K18: 0 | L18: =(K18-J18)*100 -> 0 | N18: 0.1302009886 | O18: 0 | EY18: n.a. | EZ18: =empresa_ccaa!M22-empresa_ccaa!H22 ->  | FB18: 1 | FC18: 0 | FD18: COMUNIDAD VALENCIANA | FE18: n.a. | FF18: 0.1302009886
C19: EXTREMADURA | D19: =empresa_ccaa!F23 -> 4901073.325 | E19: =empresa_ccaa!G23 -> 7111238.723 | F19: 0.4509553829 | G19: =empresa_ccaa!K23 -> 0 | H19: =empresa_ccaa!L23 -> 0 | I19: n.a. | J19: 0 | K19: 0 | L19: 0 | N19: 0.4509553829 | O19: 0 | EY19: n.a. | EZ19: =empresa_ccaa!M23-empresa_ccaa!H23 ->  | FB19: 1 | FC19: 0 | FD19: EXTREMADURA | FE19: n.a. | FF19: 0.4509553829
C20: GALICIA | D20: =empresa_ccaa!F24 -> 53225967.37 | E20: =empresa_ccaa!G24 -> 65398193.73 | F20: 0.228689622 | G20: =empresa_ccaa!K24 -> 0 | H20: =empresa_ccaa!L24 -> 0 | I20: n.a. | J20: 0 | K20: 0 | L20: 0 | N20: 0.228689622 | O20: 0 | EY20: n.a. | EZ20: =empresa_ccaa!M24-empresa_ccaa!H24 ->  | FB20: 1 | FC20: 0 | FD20: GALICIA | FE20: n.a. | FF20: 0.228689622
C21: MADRID | D21: =empresa_ccaa!F25 -> 171979406.8 | E21: =empresa_ccaa!G25 -> 188453132.1 | F21: 0.09578894137 | G21: =empresa_ccaa!K25 -> 0 | H21: =empresa_ccaa!L25 -> 0 | I21: n.a. | J21: 0 | K21: 0 | L21: 0 | N21: 0.09578894137 | O21: 0 | EY21: n.a. | EZ21: =empresa_ccaa!M25-empresa_ccaa!H25 ->  | FB21: 1 | FC21: 0 | FD21: MADRID | FE21: n.a. | FF21: 0.09578894137
C22: MURCIA | D22: =empresa_ccaa!F26 -> 50111721.58 | E22: =empresa_ccaa!G26 -> 57230710.02 | F22: 0.1420623403 | G22: =empresa_ccaa!K26 -> 0 | H22: =empresa_ccaa!L26 -> 0 | I22: n.a. | J22: 0 | K22: 0 | L22: 0 | N22: 0.1420623403 | O22: 0 | EY22: n.a. | EZ22: =empresa_ccaa!M26-empresa_ccaa!H26 ->  | FB22: 1 | FC22: 0 | FD22: MURCIA | FE22: n.a. | FF22: 0.1420623403
C23: NAVARRA | D23: =empresa_ccaa!F27 -> 34335702.57 | E23: =empresa_ccaa!G27 -> 44876392.88 | F23: 0.306989213 | G23: =empresa_ccaa!K27 -> 0 | H23: =empresa_ccaa!L27 -> 0 | I23: n.a. | J23: 0 | K23: 0 | L23: 0 | N23: 0.306989213 | O23: 0 | EY23: n.a. | EZ23: =empresa_ccaa!M27-empresa_ccaa!H27 ->  | FB23: 1 | FC23: 0 | FD23: NAVARRA | FE23: n.a. | FF23: 0.306989213
C24: PAIS VASCO | D24: =empresa_ccaa!F28 -> 57182572.55 | E24: =empresa_ccaa!G28 -> 59676371.43 | F24: 0.0436111698 | G24: =empresa_ccaa!K28 -> 0 | H24: =empresa_ccaa!L28 -> 0 | I24: n.a. | J24: 0 | K24: 0 | L24: 0 | N24: 0.0436111698 | O24: 0 | EY24: n.a. | EZ24: =empresa_ccaa!M28-empresa_ccaa!H28 ->  | FB24: 1 | FC24: 0 | FD24: PAIS VASCO | FE24: n.a. | FF24: 0.0436111698
C25: RIOJA (LA) | D25: =empresa_ccaa!F29 -> 9295184.233 | E25: =empresa_ccaa!G29 -> 9201606.249 | F25: -0.01006736187 | G25: =empresa_ccaa!K29 -> 0 | H25: =empresa_ccaa!L29 -> 0 | I25: n.a. | J25: 0 | K25: 0 | L25: 0 | N25: -0.01006736187 | O25: 0 | EY25: n.a. | EZ25: =empresa_ccaa!M29-empresa_ccaa!H29 ->  | FB25: 1 | FC25: 0 | FD25: RIOJA (LA) | FE25: n.a. | FF25: -0.01006736187
FB26: codifico=1 | FC26: máximo
FB27: =DMAX(FB8:FD25,FC8,FB8:FB25)*1 -> 0 | FC27: =MAX(FC9:FC25) -> 0
L28: =K6 -> Cuota de Facturación | FA28: geo data | FB28: =VLOOKUP(1,FB8:FF25,3,0) -> ANDALUCIA
O29: =K7 -> 2018 | FB29: el dato a buscar debe estar en la primera columna.
D30: % i.a. | H30: % i.a. | FB30: =VLOOKUP(1,FB8:FF25,4,0)*1 -> 
D31: =E7 -> 2018 | H31: =D31 -> 2018 | FB31: =VLOOKUP(1,FB8:FF25,5,0)*1 -> 0.1148830171
D32: Total | H32: Empresa | L32: =L5 -> iEMPRESA
O33: Ámbito
C34: Ámbito | D34: =H34 -> Nacional | H34: =L34 -> Nacional | L34: Nacional | O34: Nacional
L38: =FB28 -> ANDALUCIA | O38: CCAA
O39: Líder para la
D40: % i.a. | H40: % i.a. | O40: Empresa
D41: =D31 -> 2018 | H41: =D41 -> 2018
D42: Total | H42: Empresa | L42: =L32 -> iEMPRESA
C44: Ámbito | D44: =H44 -> ANDALUCIA | H44: =L44 -> ANDALUCIA | L44: =L38 -> ANDALUCIA
C48: Fuente: Cifras consolidadas del sector. Valores absolutos 2015-2018 y cifras de evolución de 2016 a la fecha. ASEMPLEO ©.
C49: Nota de Confidencialidad: Este informe comparativo contiene datos redondeados que son ficticeos y serán reemplazados por los que la Empresa introduzca en "empresa_ccaa".

Sheet Ayuda y Version (hidden)
G2: Versión de plantilla: | H2: 2.5

Sheet pBlock (hidden)
B4: Block Test
B5: Info1 | C5: Info2

Sheet pAccel0 (hidden)
A1: Gauge Configuration | O1: Gauge Configuration | Z1: Gauge Configuration | AK1: Gauge Configuration
F2: Decal | T2: Decal | AE2: Decal | AP2: Decal
A3: Title: | B3: =Dashboard!#REF! ->  | F3: 0 | O3: Title: | P3: =pAccel0!B3 ->  | T3: 0 | Z3: Title: | AA3: Empresa | AE3: 0 | AK3: Title: | AL3: CCAA | AP3: 0
A4: Real Value: | B4: =Dashboard!#REF! ->  | O4: Real Value: | P4: =Dashboard!K8 -> 0 | Z4: Real Value: | AA4: =Dashboard!K8 -> 0 | AK4: Real Value: | AL4: =Dashboard!FB27 -> 0
A6: Color bands | O6: Color bands | Z6: Color bands | AK6: Color bands
A7: Red: | B7: 2 | O7: Red: | P7: 2 | Z7: Red: | AA7: 2 | AK7: Red: | AL7: 2
A8: Yellow: | B8: 15 | O8: Yellow: | P8: 15 | Z8: Yellow: | AA8: 15 | AK8: Yellow: | AL8: 15
A9: Green: | B9: 23 | O9: Green: | P9: 23 | Z9: Green: | AA9: 23 | AK9: Green: | AL9: 23
A11: Advanced Parameters | O11: Advanced Parameters | Z11: Advanced Parameters | AK11: Advanced Parameters
B12: Value to 100% | C12: =IF(ISERROR((B4-F3/100)*B27),0,(B4-F3/100)*B27) -> 0 | P12: Value to 100% | Q12: =IF(ISERROR((P4-T3/100)*P27),0,(P4-T3/100)*P27) -> 0 | AA12: Value to 100% | AB12: =IF(ISERROR((AA4-AE3/100)*AA27),0,(AA4-AE3/100)*AA27) -> 0 | AL12: Value to 100% | AM12: =IF(ISERROR((AL4-AP3/100)*AL27),0,(AL4-AP3/100)*AL27) -> 0
B13: Relative value | C13: =IF(C12>100%,102%,IF(C12<0%,-2%,C12))*1.506-0.253 -> -0.253 | P13: Relative value | Q13: =IF(Q12>100%,102%,IF(Q12<0%,-2%,Q12))*1.506-0.253 -> -0.253 | AA13: Relative value | AB13: =IF(AB12>100%,102%,IF(AB12<0%,-2%,AB12))*1.506-0.253 -> -0.253 | AL13: Relative value | AM13: =IF(AM12>100%,102%,IF(AM12<0%,-2%,AM12))*1.506-0.253 -> -0.253
A15: Angle | C15: =C13*PI() -> -0.7948229414 | O15: Angle | Q15: =Q13*PI() -> -0.7948229414 | Z15: Angle | AB15: =AB13*PI() -> -0.7948229414 | AK15: Angle | AM15: =AM13*PI() -> -0.7948229414
A16: x | B16: 0 | C16: =-COS(C15) -> -0.7004111508 | O16: x | P16: 0 | Q16: =-COS(Q15) -> -0.7004111508 | Z16: x | AA16: 0 | AB16: =-COS(AB15) -> -0.7004111508 | AK16: x | AL16: 0 | AM16: =-COS(AM15) -> -0.7004111508
A17: y | B17: 0 | C17: =SIN(C15) -> -0.7137396023 | O17: y | P17: 0 | Q17: =SIN(Q15) -> -0.7137396023 | Z17: y | AA17: 0 | AB17: =SIN(AB15) -> -0.7137396023 | AK17: y | AL17: 0 | AM17: =SIN(AM15) -> -0.7137396023
D19: Value | E19: Label | R19: Value | S19: Label | AC19: Value | AD19: Label | AN19: Value | AO19: Label
C20: 70 | D20: 10 | E20: =B26+F3 -> 4 | Q20: 70 | R20: 10 | S20: =P26+T3 -> 4 | AB20: 70 | AC20: 10 | AD20: =AA26+AE3 -> 4 | AM20: 70 | AN20: 10 | AO20: =AL26+AP3 -> 4
C21: =B7*$C$20/$B$25 -> 3.5 | D21: 10 | E21: =E20+$B$26 -> 8 | Q21: =P7*$C$20/$B$25 -> 3.5 | R21: 10 | S21: =S20+$B$26 -> 8 | AB21: =AA7*$AB$20/$AA$25 -> 3.5 | AC21: 10 | AD21: =AD20+$AA$26 -> 8 | AM21: =AL7*$AM$20/$AL$25 -> 3.5 | AN21: 10 | AO21: =AO20+$AL$26 -> 8
C22: =B8*$C$20/$B$25 -> 26.25 | D22: 10 | E22: 12 | Q22: =P8*$C$20/$B$25 -> 26.25 | R22: 10 | S22: 12 | AB22: =AA8*$AB$20/$AA$25 -> 26.25 | AC22: 10 | AD22: 12 | AM22: =AL8*$AM$20/$AL$25 -> 26.25 | AN22: 10 | AO22: =AO21+$AL$26 -> 12
C23: =B9*$C$20/$B$25 -> 40.25 | D23: 10 | E23: 16 | Q23: =P9*$C$20/$B$25 -> 40.25 | R23: 10 | S23: 16 | AB23: =AA9*$AB$20/$AA$25 -> 40.25 | AC23: 10 | AD23: 16 | AM23: 40.25 | AN23: 10 | AO23: 16
A24: White | C24: 23 | D24: 10 | E24: 20 | O24: White | Q24: 23 | R24: 10 | S24: 20 | Z24: White | AB24: 23 | AC24: 10 | AD24: 20 | AK24: White | AM24: 23 | AN24: 10 | AO24: 20
A25: Total | B25: =SUM(B7:B24) -> 40 | C25: =SUM(C21:C24) -> 93 | D25: 10 | E25: 24 | O25: Total | P25: =SUM(P7:P24) -> 40 | Q25: =SUM(Q21:Q24) -> 93 | R25: 10 | S25: 24 | Z25: Total | AA25: =SUM(AA7:AA24) -> 40 | AB25: =SUM(AB21:AB24) -> 93 | AC25: 10 | AD25: 24 | AK25: Total | AL25: =SUM(AL7:AL24) -> 40 | AM25: =SUM(AM21:AM24) -> 93 | AN25: 10 | AO25: 24
A26: Increment | B26: =B25/10 -> 4 | D26: 10 | E26: 28 | O26: Increment | P26: =P25/10 -> 4 | R26: 10 | S26: 28 | Z26: Increment | AA26: =AA25/10 -> 4 | AC26: 10 | AD26: 28 | AK26: Increment | AL26: =AL25/10 -> 4 | AN26: 10 | AO26: 28
A27: Conversion | B27: =100/B25 -> 2.5 | D27: 10 | E27: 32 | O27: Conversion | P27: =100/P25 -> 2.5 | R27: 10 | S27: 32 | Z27: Conversion | AA27: =100/AA25 -> 2.5 | AC27: 10 | AD27: 32 | AK27: Conversion | AL27: =100/AL25 -> 2.5 | AN27: 10 | AO27: 32
D28: 10 | E28: 36 | R28: 10 | S28: 36 | AC28: 10 | AD28: 36 | AN28: 10 | AO28: 36
D29: 10 | E29: 40 | R29: 10 | S29: 40 | AC29: 10 | AD29: 40 | AN29: 10 | AO29: 40
D30: 33 | E30: =F3 -> 0 | R30: 33 | S30: =T3 -> 0 | AC30: 33 | AD30: =AE3 -> 0 | AN30: 33 | AO30: =AP3 -> 0

Sheet pAccel1 (hidden)
A1: Gauge Configuration | Q1: Gauge Configuration | X1: Gauge Configuration | AE1: Gauge Configuration | AL1: Gauge Configuration | AS1: Gauge Configuration | AZ1: Gauge Configuration | BG1: Gauge Configuration
F2: Decal | V2: Decal | AC2: Decal | AJ2: Decal | AQ2: Decal | AX2: Decal | BE2: Decal | BL2: Decal
A3: Title: | B3: CPDs | F3: 100 | Q3: Title: | R3: Facturación | V3: 100 | X3: Title: | Y3: CPDs | AC3: 100 | AE3: Title: | AF3: Facturación | AJ3: 100 | AL3: Title: | AM3: Facturación | AQ3: 100 | AS3: Title: | AT3: Facturación | AX3: 100 | AZ3: Title: | BA3: Facturación | BE3: 100 | BG3: Title: | BH3: Facturación | BL3: 100
A4: Real Value: | B4: =Dashboard!#REF! ->  | C4: =Dashboard!#REF! ->  | Q4: Real Value: | R4: =Dashboard!#REF! ->  | X4: Real Value: | Y4: =Dashboard!#REF! ->  | AE4: Real Value: | AF4: =Dashboard!#REF! ->  | AL4: Real Value: | AM4: =Dashboard!F8 -> 0.1513864735 | AS4: Real Value: | AT4: =Dashboard!$I$8 -> n.a. | AZ4: Real Value: | BA4: =Dashboard!FB31 -> 0.1148830171 | BG4: Real Value: | BH4: =Dashboard!FB30 -> 
A6: Color bands
A7: Red: | B7: -50
A8: Yellow: | B8: 0
A9: Green: | B9: 50
A11: Advanced Parameters | Q11: Advanced Parameters | X11: Advanced Parameters | AE11: Advanced Parameters | AL11: Advanced Parameters | AS11: Advanced Parameters | AZ11: Advanced Parameters | BG11: Advanced Parameters
B12: Value to 100% | C12: =IF(ISERROR((B4-F3/100)*B27),0,(B4-F3/100)*B27) -> 0 | E12: =IF(ISERROR((C4-F3/100)*B27),0,(C4-F3/100)*B27) -> 0 | R12: Value to 100% | S12: =IF(ISERROR((R4-V3/100)*R27),0,(R4-V3/100)*R27) -> 0 | Y12: Value to 100% | Z12: =IF(ISERROR((Y4-AC3/100)*Y27),0,(Y4-AC3/100)*Y27) -> 0 | AF12: Value to 100% | AG12: =IF(ISERROR((AF4-AJ3/100)*AF27),0,(AF4-AJ3/100)*AF27) -> 0 | AM12: Value to 100% | AN12: =IF(ISERROR((AM4-AQ3/100)*AM27),0,(AM4-AQ3/100)*AM27) -> -1.697227053 | AT12: Value to 100% | AU12: =IF(ISERROR((AT4-AX3/100)*AT27),0,(AT4-AX3/100)*AT27) -> 0 | BA12: Value to 100% | BB12: =IF(ISERROR((BA4-BE3/100)*BA27),0,(BA4-BE3/100)*BA27) -> -1.770233966 | BH12: Value to 100% | BI12: =IF(ISERROR((BH4-BL3/100)*BH27),0,(BH4-BL3/100)*BH27) -> 0
B13: Relative value | C13: =IF(B4<-100%,-100%,IF(B4>100%,100%,2*B4/1)) ->  | D13: ojo1, todo en porcentaje, por 2, y con 1 al final en lugar de 100. | E13: =IF(C4<-100%,-100%,IF(C4>100%,100%,2*C4/1)) ->  | I13: Todos los negritas tienen dato 50, en lugar de 100 para que la escala recorra menos. | R13: Relative value | S13: =IF(R4<-100%,-100%,IF(R4>100%,100%,2*R4/1)) ->  | Y13: Relative value | Z13: =IF(Y4<-100%,-100%,IF(Y4>100%,100%,2*Y4/1)) ->  | AF13: Relative value | AG13: =IF(AF4<-100%,-100%,IF(AF4>100%,100%,2*AF4/1)) ->  | AM13: Relative value | AN13: =IF(AM4<-100%,-100%,IF(AM4>100%,100%,2*AM4/1)) -> 0.3027729469 | AT13: Relative value | AU13: =IF(AT4<-100%,-100%,IF(AT4>100%,100%,2*AT4/1)) -> 1 | BA13: Relative value | BB13: =IF(BA4<-100%,-100%,IF(BA4>100%,100%,2*BA4/1)) -> 0.2297660342 | BH13: Relative value | BI13: =IF(BH4<-100%,-100%,IF(BH4>100%,100%,2*BH4/1)) -> 
A15: Angle | C15: =C13*PI()/2 ->  | E15: =E13*PI()/2 ->  | Q15: Angle | S15: =S13*PI()/2 ->  | X15: Angle | Z15: =Z13*PI()/2 ->  | AE15: Angle | AG15: =AG13*PI()/2 ->  | AL15: Angle | AN15: =AN13*PI()/2 -> 0.4755946329 | AS15: Angle | AU15: =AU13*PI()/2 -> 1.570796327 | AZ15: Angle | BB15: =BB13*PI()/2 -> 0.3609156426 | BG15: Angle | BI15: =BI13*PI()/2 -> 
A16: x | B16: 0 | C16: =SIN(C15) ->  | D16: =B16 -> 0 | E16: =SIN(E15) ->  | Q16: x | R16: 0 | S16: =SIN(S15) ->  | X16: x | Y16: 0 | Z16: =SIN(Z15) ->  | AE16: x | AF16: 0 | AG16: =SIN(AG15) ->  | AL16: x | AM16: 0 | AN16: =SIN(AN15) -> 0.457867169 | AS16: x | AT16: 0 | AU16: =SIN(AU15) -> 1 | AZ16: x | BA16: 0 | BB16: =SIN(BB15) -> 0.3531310325 | BG16: x | BH16: 0 | BI16: =SIN(BI15) -> 
A17: y | B17: 0 | C17: =-COS(C15) ->  | D17: =B17 -> 0 | E17: =-COS(E15) ->  | Q17: y | R17: 0 | S17: =-COS(S15) ->  | X17: y | Y17: 0 | Z17: =-COS(Z15) ->  | AE17: y | AF17: 0 | AG17: =-COS(AG15) ->  | AL17: y | AM17: 0 | AN17: =-COS(AN15) -> -0.8890206159 | AS17: y | AT17: 0 | AU17: =-COS(AU15) -> -6.125742275e-17 | AZ17: y | BA17: 0 | BB17: =-COS(BB15) -> -0.9355738741 | BG17: y | BH17: 0 | BI17: =-COS(BI15) -> 
D19: Value | E19: Label
C20: 50 | D20: 0 | E20: 50
C21: =E21 -> 40 | D21: =D31/D33 -> 5 | E21: =E20+$B$26 -> 40
C22: =E22 -> 30 | D22: =D21 -> 5 | E22: =E21+$B$26 -> 30
C23: 20 | D23: =D22 -> 5 | E23: 20
A24: White | C24: 10 | D24: 5 | E24: 10 | Q24: White | X24: White | AE24: White | AL24: White | AS24: White | AZ24: White | BG24: White
A25: Total | B25: 50 | C25: 0 | D25: 5 | E25: 0 | Q25: Total | R25: 50 | X25: Total | Y25: 50 | AE25: Total | AF25: 50 | AL25: Total | AM25: 50 | AS25: Total | AT25: 50 | AZ25: Total | BA25: 50 | BG25: Total | BH25: 50
A26: Increment | B26: -10 | C26: -10 | D26: 5 | E26: -10 | Q26: Increment | R26: -10 | X26: Increment | Y26: -10 | AE26: Increment | AF26: -10 | AL26: Increment | AM26: -10 | AS26: Increment | AT26: -10 | AZ26: Increment | BA26: -10 | BG26: Increment | BH26: -10
A27: Conversion | B27: =100/B25 -> 2 | C27: -20 | D27: 5 | E27: -20 | Q27: Conversion | R27: =100/R25 -> 2 | X27: Conversion | Y27: =100/Y25 -> 2 | AE27: Conversion | AF27: =100/AF25 -> 2 | AL27: Conversion | AM27: =100/AM25 -> 2 | AS27: Conversion | AT27: =100/AT25 -> 2 | AZ27: Conversion | BA27: =100/BA25 -> 2 | BG27: Conversion | BH27: =100/BH25 -> 2
C28: -30 | D28: 5 | E28: -30
C29: -40 | D29: 5 | E29: -40
C30: -50 | D30: 5 | E30: -50
D31: 50
D33: 10
D35: =SUM(D20:D30) -> 50

Sheet empresa_ccaa
M3: =Dashboard!O3 -> 2018
M4: =Dashboard!O4 -> ABRIL
K5: Empresa | L5: =L9 -> iEMPRESA
C9: Facturación, € | F9: ASEMPLEO | G9: ASEMPLEO | K9: Empresa = | L9: iEMPRESA
C10: Dato acumulado a | E10: =M4 -> ABRIL | F10: =Dashboard!D7 -> 2017 | G10: =Dashboard!E7 -> 2018 | J10: Facturación | K10: =F10 -> 2017 | L10: =G10 -> 2018
H11: Estructura (%) | J11: Datos acumulados | M11: Estructura (%) | N11: check
F12: =E195 -> 1075683738 | G12: =B195 -> 1238527705 | H12: =G12/G$12 -> 1 | I12: TOTAL | M12: =L12/L$12 ->  | N12: =L12/K12-1 -> 
F13: 99582906.27 | G13: 111023291 | H13: =G13/G$12 -> 0.08964134634 | I13: ANDALUCIA | M13: =L13/L$12 -> 
F14: 56672274.22 | G14: 62558009.11 | H14: =G14/G$12 -> 0.05050997958 | I14: ARAGON | M14: =L14/L$12 -> 
F15: 21003022.58 | G15: 23962270.74 | H15: 0.0193473837 | I15: ASTURIAS
F16: 3946954.336 | G16: 4410256.162 | H16: 0.003560886158 | I16: BALEARES
F17: 28746215.06 | G17: 31044433.63 | H17: 0.02506559482 | I17: CANARIAS
F18: 24157691.91 | G18: 30854376.07 | H18: 0.02491214039 | I18: CANTABRIA
F19: 44425325.81 | G19: 53376452.65 | H19: 0.04309669652 | I19: CASTILLA-LA MANCHA
F20: 72635480.9 | G20: 82421469.27 | H20: 0.06654794148 | I20: CASTILLA Y LEÓN
F21: 266050543.5 | G21: 319416123.6 | H21: 0.2578998615 | I21: CATALUÑA | M21: =L21/L$12 -> 
F22: 77431694.76 | G22: 87513377.97 | H22: 0.07065920091 | I22: COMUNIDAD VALENCIANA
F23: 4901073.325 | G23: 7111238.723 | H23: 0.00574168724 | I23: EXTREMADURA
F24: 53225967.37 | G24: 65398193.73 | H24: 0.05280317384 | I24: GALICIA
F25: 171979406.8 | G25: 188453132.1 | H25: 0.152158996 | I25: MADRID
F26: 50111721.58 | G26: 57230710.02 | H26: 0.04620866354 | I26: MURCIA
F27: 34335702.57 | G27: 44876392.88 | H27: 0.03623366089 | I27: NAVARRA
F28: 57182572.55 | G28: 59676371.43 | H28: 0.0481833157 | I28: PAIS VASCO
F29: 9295184.233 | G29: 9201606.249 | H29: 0.007429471468 | I29: RIOJA (LA)
A31: Fuente: Cifras consolidadas del sector. ASEMPLEO ©.
A32: Nota de Confidencialidad: Este informe comparativo se genera con los datos propios de la Empresa.
A190: D03: | D190: D03: | G190: D03 : | H190: Variación Interanual (%)
A191: MES: | B191: ACUMULADO A LA FECHA | D191: =A191 -> MES: | E191: =B191 -> ACUMULADO A LA FECHA | G191: =D191 -> MES: | H191: Tasa % i.a.
B193: Facturación | E193: Facturación | H193: Facturación
I194: check
A195: TOTAL | B195: 1238527705 | D195: TOTAL | E195: 1075683738 | G195: TOTAL | H195: 0.1513864735 | I195: =B195/E195-1 -> 0.1513864735
A196: ANDALUCIA | B196: 111023291 | D196: ANDALUCIA | E196: 99582906.27 | G196: ANDALUCIA | H196: 0.1148830171 | I196: =B196/E196-1 -> 0.1148830171
A197: ARAGON | B197: 62558009.11 | D197: ARAGON | E197: 56672274.22 | G197: ARAGON | H197: 0.1038556326 | I197: 0.1038556326
A198: ASTURIAS | B198: 23962270.74 | D198: ASTURIAS | E198: 21003022.58 | G198: ASTURIAS | H198: 0.1408962997 | I198: 0.1408962997
A199: BALEARES | B199: 4410256.162 | D199: BALEARES | E199: 3946954.336 | G199: BALEARES | H199: 0.1173821095 | I199: 0.1173821095
A200: CANARIAS | B200: 31044433.63 | D200: CANARIAS | E200: 28746215.06 | G200: CANARIAS | H200: 0.07994856237 | I200: 0.07994856237
A201: CANTABRIA | B201: 30854376.07 | D201: CANTABRIA | E201: 24157691.91 | G201: CANTABRIA | H201: 0.2772071186 | I201: 0.2772071186
A202: CASTILLA-LA MANCHA | B202: 53376452.65 | D202: CASTILLA-LA MANCHA | E202: 44425325.81 | G202: CASTILLA-LA MANCHA | H202: 0.2014870274 | I202: 0.2014870274
A203: CASTILLA Y LEÓN | B203: 82421469.27 | D203: CASTILLA Y LEÓN | E203: 72635480.9 | G203: CASTILLA Y LEÓN | H203: 0.1347273846 | I203: 0.1347273846
A204: CATALUÑA | B204: 319416123.6 | D204: CATALUÑA | E204: 266050543.5 | G204: CATALUÑA | H204: 0.200584368 | I204: 0.200584368
A205: COMUNIDAD VALENCIANA | B205: 87513377.97 | D205: COMUNIDAD VALENCIANA | E205: 77431694.76 | G205: COMUNIDAD VALENCIANA | H205: 0.1302009886 | I205: 0.1302009886
A206: EXTREMADURA | B206: 7111238.723 | D206: EXTREMADURA | E206: 4901073.325 | G206: EXTREMADURA | H206: 0.4509553829 | I206: 0.4509553829
A207: GALICIA | B207: 65398193.73 | D207: GALICIA | E207: 53225967.37 | G207: GALICIA | H207: 0.228689622 | I207: 0.228689622
A208: MADRID | B208: 188453132.1 | D208: MADRID | E208: 171979406.8 | G208: MADRID | H208: 0.09578894137 | I208: 0.09578894137
A209: MURCIA | B209: 57230710.02 | D209: MURCIA | E209: 50111721.58 | G209: MURCIA | H209: 0.1420623403 | I209: 0.1420623403
A210: NAVARRA | B210: 44876392.88 | D210: NAVARRA | E210: 34335702.57 | G210: NAVARRA | H210: 0.306989213 | I210: 0.306989213
A211: PAIS VASCO | B211: 59676371.43 | D211: PAIS VASCO | E211: 57182572.55 | G211: PAIS VASCO | H211: 0.0436111698 | I211: 0.0436111698
A212: RIOJA (LA) | B212: 9201606.249 | D212: RIOJA (LA) | E212: 9295184.233 | G212: RIOJA (LA) | H212: -0.01006736187 | I212: =B212/E212-1 -> -0.01006736187
A213: Ceuta y Melilla | D213: Ceuta y Melilla | G213: Ceuta y Melilla
